[Event "Titled Tuesday Blitz April 19 Late 2022"]
[White "Zherebtsova, Alexandra"]
[Black "Iskusnyh, Sergei"]
[WhiteFideId "24129518"]
[BlackFideId "4120027"]
[WhiteElo "2025"]
[BlackElo "2492"]
[Result "0-1"]
[Round "08"]
[TimeControl "180+1"]
[Date "2022.04.19"]
[WhiteClock "0:00:02"]
[BlackClock "0:00:33"]

1. d4 {[%clk 0:03:00]}  d5 {[%clk 0:02:58]} 2. Nf3 {[%clk 0:02:56]}  Nf6 {[%clk 0:02:58]} 3. c4 {[%clk 0:02:55]}  c6 {[%clk 0:02:58]} 4. e3 {[%clk 0:02:54]}  a6 {[%clk 0:02:53]} 5. Nbd2 {[%clk 0:02:52]}  Bf5 {[%clk 0:02:52]} 6. b3 {[%clk 0:02:51]}  e6 {[%clk 0:02:51]} 7. Bb2 {[%clk 0:02:50]}  Nbd7 {[%clk 0:02:51]} 8. Be2 {[%clk 0:02:50]}  h6 {[%clk 0:02:51]} 9. O-O {[%clk 0:02:49]}  Be7 {[%clk 0:02:51]} 10. Ne5 {[%clk 0:02:45]}  Nxe5 {[%clk 0:02:49]} 11. dxe5 {[%clk 0:02:45]}  Nd7 {[%clk 0:02:50]} 12. Nf3 {[%clk 0:02:40]}  O-O {[%clk 0:02:49]} 13. cxd5 {[%clk 0:02:34]}  cxd5 {[%clk 0:02:48]} 14. Rc1 {[%clk 0:02:32]}  Qa5 {[%clk 0:02:39]} 15. a3 {[%clk 0:02:26]}  Rfc8 {[%clk 0:02:38]} 16. b4 {[%clk 0:02:24]}  Qd8 {[%clk 0:02:38]} 17. Nd4 {[%clk 0:02:06]}  Bg6 {[%clk 0:02:32]} 18. f4 {[%clk 0:02:01]}  Be4 {[%clk 0:02:32]} 19. Qb3 {[%clk 0:01:56]}  Nb6 {[%clk 0:02:23]} 20. a4 {[%clk 0:01:31]}  Qd7 {[%clk 0:01:49]} 21. a5 {[%clk 0:01:22]}  Nc4 {[%clk 0:01:49]} 22. Bxc4 {[%clk 0:01:17]}  dxc4 {[%clk 0:01:50]} 23. Rxc4 {[%clk 0:01:13]}  Bd5 {[%clk 0:01:49]} 24. Rxc8+ {[%clk 0:01:12]}  Rxc8 {[%clk 0:01:50]} 25. Qa3 {[%clk 0:00:57]}  Be4 {[%clk 0:01:46]} 26. Rc1 {[%clk 0:00:42]}  Rxc1+ {[%clk 0:01:41]} 27. Bxc1 {[%clk 0:00:43]}  Qd5 {[%clk 0:01:41]} 28. Qb2 {[%clk 0:00:40]}  Qc4 {[%clk 0:01:38]} 29. Bd2 {[%clk 0:00:39]}  Qd3 {[%clk 0:01:20]} 30. Kf2 {[%clk 0:00:16]}  Bd5 {[%clk 0:01:12]} 31. Nf3 {[%clk 0:00:14]}  Bc4 {[%clk 0:01:08]} 32. Qc3 {[%clk 0:00:11]}  Qe2+ {[%clk 0:00:56]} 33. Kg3 {[%clk 0:00:11]}  h5 {[%clk 0:00:46]} 34. h3 {[%clk 0:00:08]}  h4+ {[%clk 0:00:44]} 35. Kh2 {[%clk 0:00:08]}  Bd5 {[%clk 0:00:43]} 36. e4 {[%clk 0:00:05]}  Bxe4 {[%clk 0:00:41]} 37. Qc8+ {[%clk 0:00:03]}  Kh7 {[%clk 0:00:40]} 38. Qc3 {[%clk 0:00:02]}  Bxf3 {[%clk 0:00:39]} 39. Qxf3 {[%clk 0:00:01]}  Qxd2 {[%clk 0:00:39]} 40. Qe4+ {[%clk 0:00:02]}  g6 {[%clk 0:00:32]} 41. Qxb7 {[%clk 0:00:02]}  Qxb4 {[%clk 0:00:33]} 0-1


[Site "https://www.chess.com"]

[Event "Titled Tuesday Blitz April 19 Late 2022"]
[White "Zong, Davis"]
[Black "Hernandez Bermudez, Ulises Eduardo"]
[WhiteFideId "30903955"]
[BlackFideId "3902510"]
[WhiteElo "2061"]
[BlackElo "2056"]
[Result "0-1"]
[Round "08"]
[TimeControl "180+1"]
[Date "2022.04.19"]
[WhiteClock "0:00:39"]
[BlackClock "0:01:36"]

1. e4 {[%clk 0:03:00]}  c5 {[%clk 0:02:59]} 2. c3 {[%clk 0:03:00]}  Nf6 {[%clk 0:02:59]} 3. e5 {[%clk 0:03:01]}  Nd5 {[%clk 0:02:59]} 4. d4 {[%clk 0:03:01]}  cxd4 {[%clk 0:03:00]} 5. Nf3 {[%clk 0:03:02]}  d6 {[%clk 0:02:58]} 6. cxd4 {[%clk 0:03:02]}  Nc6 {[%clk 0:02:57]} 7. Bc4 {[%clk 0:03:02]}  dxe5 {[%clk 0:02:57]} 8. dxe5 {[%clk 0:02:59]}  e6 {[%clk 0:02:57]} 9. O-O {[%clk 0:02:59]}  Be7 {[%clk 0:02:55]} 10. Qe2 {[%clk 0:02:55]}  O-O {[%clk 0:02:54]} 11. Nc3 {[%clk 0:02:53]}  Nxc3 {[%clk 0:02:54]} 12. bxc3 {[%clk 0:02:54]}  Qc7 {[%clk 0:02:53]} 13. Bd3 {[%clk 0:02:51]}  Rd8 {[%clk 0:02:27]} 14. Qe4 {[%clk 0:02:45]}  g6 {[%clk 0:02:27]} 15. h4 {[%clk 0:02:45]}  b6 {[%clk 0:02:26]} 16. h5 {[%clk 0:02:31]}  Bb7 {[%clk 0:02:25]} 17. hxg6 {[%clk 0:02:31]}  hxg6 {[%clk 0:02:25]} 18. Bb2 {[%clk 0:01:57]}  Nb4 {[%clk 0:02:18]} 19. Qc4 {[%clk 0:01:53]}  Qxc4 {[%clk 0:02:14]} 20. Bxc4 {[%clk 0:01:53]}  Nd5 {[%clk 0:02:13]} 21. Nd4 {[%clk 0:01:25]}  Rac8 {[%clk 0:02:04]} 22. Bb3 {[%clk 0:01:25]}  Nxc3 {[%clk 0:01:58]} 23. Nxe6 {[%clk 0:01:19]}  fxe6 {[%clk 0:01:51]} 24. Bxe6+ {[%clk 0:01:19]}  Kg7 {[%clk 0:01:49]} 25. Bxc8 {[%clk 0:01:06]}  Ne2+ {[%clk 0:01:39]} 26. Kh2 {[%clk 0:01:06]}  Rxc8 {[%clk 0:01:38]} 27. Kh3 {[%clk 0:00:39]}  Rh8+ {[%clk 0:01:36]} 28. Kg4 {[%clk 0:00:39]}  Rh4# {[%clk 0:01:36]} 0-1


[Site "https://www.chess.com"]

[Event "Titled Tuesday Blitz April 19 Late 2022"]
[White "Adewumi, Tanitoluwa"]
[Black "Wagner, Dennis"]
[WhiteFideId "30966396"]
[BlackFideId "24650684"]
[WhiteElo "2550"]
[BlackElo "2355"]
[Result "0-1"]
[Round "09"]
[TimeControl "180+1"]
[Date "2022.04.19"]
[WhiteClock "0:00:01"]
[BlackClock "0:00:14"]

1. e4 {[%clk 0:03:00]}  c5 {[%clk 0:02:59]} 2. Nf3 {[%clk 0:02:56]}  e6 {[%clk 0:02:59]} 3. d4 {[%clk 0:02:55]}  cxd4 {[%clk 0:03:00]} 4. Nxd4 {[%clk 0:02:56]}  Nf6 {[%clk 0:02:59]} 5. Nc3 {[%clk 0:02:55]}  Nc6 {[%clk 0:02:59]} 6. Be2 {[%clk 0:02:49]}  d6 {[%clk 0:02:44]} 7. O-O {[%clk 0:02:48]}  Be7 {[%clk 0:02:44]} 8. Be3 {[%clk 0:02:47]}  O-O {[%clk 0:02:44]} 9. f4 {[%clk 0:02:46]}  a6 {[%clk 0:02:42]} 10. Bf3 {[%clk 0:02:44]}  Bd7 {[%clk 0:02:40]} 11. Qd2 {[%clk 0:02:31]}  Qc7 {[%clk 0:02:26]} 12. Rad1 {[%clk 0:02:28]}  Rfd8 {[%clk 0:02:19]} 13. Qf2 {[%clk 0:02:14]}  Re8 {[%clk 0:02:06]} 14. Nxc6 {[%clk 0:02:09]}  Bxc6 {[%clk 0:02:06]} 15. Bb6 {[%clk 0:02:08]}  Qc8 {[%clk 0:02:06]} 16. e5 {[%clk 0:02:06]}  Bxf3 {[%clk 0:01:37]} 17. Qxf3 {[%clk 0:01:39]}  Nd7 {[%clk 0:01:36]} 18. Bd4 {[%clk 0:01:23]}  d5 {[%clk 0:01:27]} 19. f5 {[%clk 0:01:21]}  Bc5 {[%clk 0:01:26]} 20. fxe6 {[%clk 0:01:19]}  fxe6 {[%clk 0:01:26]} 21. Nxd5 {[%clk 0:01:05]}  Nxe5 {[%clk 0:00:57]} 22. Nf6+ {[%clk 0:00:43]}  gxf6 {[%clk 0:00:56]} 23. Qxf6 {[%clk 0:00:42]}  Bxd4+ {[%clk 0:00:22]} 24. Rxd4 {[%clk 0:00:42]}  Qc7 {[%clk 0:00:23]} 25. Re4 {[%clk 0:00:14]}  Ng6 {[%clk 0:00:19]} 26. h4 {[%clk 0:00:12]}  Qb6+ {[%clk 0:00:17]} 27. Qd4 {[%clk 0:00:01]}  Qxd4+ {[%clk 0:00:16]} 28. Rxd4 {[%clk 0:00:01]}  Rad8 {[%clk 0:00:16]} 29. Re4 {[%clk 0:00:02]}  e5 {[%clk 0:00:16]} 30. h5 {[%clk 0:00:02]}  Nf4 {[%clk 0:00:17]} 31. g4 {[%clk 0:00:01]}  h6 {[%clk 0:00:15]} 32. c3 {[%clk 0:00:01]}  Kg7 {[%clk 0:00:15]} 33. Kh2 {[%clk 0:00:01]}  Kf6 {[%clk 0:00:15]} 34. Kg3 {[%clk 0:00:01]}  Rd3+ {[%clk 0:00:15]} 35. Kh4 {[%clk 0:00:01]}  Rh3# {[%clk 0:00:14]} 0-1


[Site "https://www.chess.com"]

[Event "Titled Tuesday Blitz April 19 Late 2022"]
[White "Ahmadzada, Ahmad"]
[Black "Keymer, Vincent"]
[WhiteFideId "13413007"]
[BlackFideId "12940690"]
[WhiteElo "2228"]
[BlackElo "2557"]
[Result "0-1"]
[Round "09"]
[TimeControl "180+1"]
[Date "2022.04.19"]
[WhiteClock "0:00:01"]
[BlackClock "0:01:03"]

1. Nf3 {[%clk 0:03:00]}  d5 {[%clk 0:02:59]} 2. g3 {[%clk 0:03:00]}  c6 {[%clk 0:02:59]} 3. Bg2 {[%clk 0:03:01]}  Bg4 {[%clk 0:03:00]} 4. O-O {[%clk 0:03:01]}  Nd7 {[%clk 0:02:59]} 5. c4 {[%clk 0:03:00]}  Bxf3 {[%clk 0:02:59]} 6. exf3 {[%clk 0:02:28]}  dxc4 {[%clk 0:02:58]} 7. Na3 {[%clk 0:02:29]}  Nb6 {[%clk 0:02:54]} 8. b3 {[%clk 0:02:26]}  cxb3 {[%clk 0:02:51]} 9. Qxb3 {[%clk 0:02:25]}  e6 {[%clk 0:02:46]} 10. Bb2 {[%clk 0:02:23]}  Nf6 {[%clk 0:02:45]} 11. f4 {[%clk 0:02:15]}  Be7 {[%clk 0:02:44]} 12. Nc4 {[%clk 0:02:04]}  Nxc4 {[%clk 0:02:27]} 13. Qxc4 {[%clk 0:02:05]}  O-O {[%clk 0:02:26]} 14. Rab1 {[%clk 0:02:01]}  Nd5 {[%clk 0:02:22]} 15. Rfe1 {[%clk 0:01:43]}  Qd7 {[%clk 0:02:17]} 16. Qe2 {[%clk 0:01:23]}  Rfe8 {[%clk 0:02:09]} 17. Qg4 {[%clk 0:01:13]}  Nf6 {[%clk 0:01:56]} 18. Qe2 {[%clk 0:01:08]}  Rad8 {[%clk 0:01:54]} 19. Be5 {[%clk 0:01:05]}  Nd5 {[%clk 0:01:42]} 20. Qg4 {[%clk 0:01:01]}  Bf6 {[%clk 0:01:27]} 21. Bxd5 {[%clk 0:00:44]}  exd5 {[%clk 0:01:23]} 22. Qxd7 {[%clk 0:00:28]}  Rxd7 {[%clk 0:01:24]} 23. Bd4 {[%clk 0:00:27]}  Rxe1+ {[%clk 0:01:20]} 24. Rxe1 {[%clk 0:00:27]}  Re7 {[%clk 0:01:20]} 25. Rxe7 {[%clk 0:00:25]}  Bxe7 {[%clk 0:01:21]} 26. Bxa7 {[%clk 0:00:26]}  f5 {[%clk 0:01:21]} 27. Kf1 {[%clk 0:00:25]}  c5 {[%clk 0:01:20]} 28. Ke2 {[%clk 0:00:23]}  Kf7 {[%clk 0:01:20]} 29. d3 {[%clk 0:00:20]}  Ke6 {[%clk 0:01:19]} 30. Kd2 {[%clk 0:00:19]}  b5 {[%clk 0:01:17]} 31. Kc3 {[%clk 0:00:18]}  d4+ {[%clk 0:01:16]} 32. Kc2 {[%clk 0:00:11]}  Kd5 {[%clk 0:01:17]} 33. Bb8 {[%clk 0:00:10]}  g6 {[%clk 0:01:17]} 34. Be5 {[%clk 0:00:10]}  Bd8 {[%clk 0:01:16]} 35. f3 {[%clk 0:00:09]}  h5 {[%clk 0:01:16]} 36. h3 {[%clk 0:00:08]}  Ba5 {[%clk 0:01:13]} 37. g4 {[%clk 0:00:07]}  Be1 {[%clk 0:01:11]} 38. Bf6 {[%clk 0:00:05]}  Bf2 {[%clk 0:01:10]} 39. Bg7 {[%clk 0:00:04]}  Be3 {[%clk 0:01:11]} 40. Bh6 {[%clk 0:00:04]}  Kc6 {[%clk 0:01:07]} 41. Bg5 {[%clk 0:00:04]}  c4 {[%clk 0:01:04]} 42. Bh6 {[%clk 0:00:04]}  Kb6 {[%clk 0:01:03]} 43. Bg5 {[%clk 0:00:03]}  Ka5 {[%clk 0:01:03]} 44. Bh6 {[%clk 0:00:01]}  Ka4 {[%clk 0:01:03]} 45. Bg5 {[%clk 0:00:01]}  Ka3 {[%clk 0:01:03]} 0-1


[Site "https://www.chess.com"]

[Event "Titled Tuesday Blitz April 19 Late 2022"]
[White "Antonova, Nadezhda"]
[Black "Zong, Davis"]
[WhiteFideId "14700182"]
[BlackFideId "30903955"]
[WhiteElo "1789"]
[BlackElo "2061"]
[Result "0-1"]
[Round "09"]
[TimeControl "180+1"]
[Date "2022.04.19"]
[WhiteClock "0:01:56"]
[BlackClock "0:01:27"]

1. Nf3 {[%clk 0:02:59]}  d5 {[%clk 0:02:59]} 2. b3 {[%clk 0:02:59]}  c6 {[%clk 0:02:56]} 3. Bb2 {[%clk 0:03:00]}  Nf6 {[%clk 0:02:56]} 4. g3 {[%clk 0:02:59]}  Bf5 {[%clk 0:02:55]} 5. Bg2 {[%clk 0:03:00]}  Nbd7 {[%clk 0:02:56]} 6. O-O {[%clk 0:03:01]}  e6 {[%clk 0:02:55]} 7. d3 {[%clk 0:03:02]}  Be7 {[%clk 0:02:52]} 8. Nbd2 {[%clk 0:03:03]}  h6 {[%clk 0:02:50]} 9. c4 {[%clk 0:03:03]}  O-O {[%clk 0:02:50]} 10. a3 {[%clk 0:03:03]}  Re8 {[%clk 0:02:46]} 11. Qc2 {[%clk 0:03:03]}  Bh7 {[%clk 0:02:43]} 12. b4 {[%clk 0:03:03]}  a5 {[%clk 0:02:42]} 13. b5 {[%clk 0:02:58]}  cxb5 {[%clk 0:02:33]} 14. cxb5 {[%clk 0:02:57]}  Rc8 {[%clk 0:02:34]} 15. Qc1 {[%clk 0:02:49]}  Rxc1 {[%clk 0:02:33]} 16. Rfxc1 {[%clk 0:02:47]}  Bd6 {[%clk 0:02:30]} 17. Nd4 {[%clk 0:02:39]}  e5 {[%clk 0:02:28]} 18. N4b3 {[%clk 0:02:37]}  a4 {[%clk 0:02:28]} 19. h3 {[%clk 0:02:22]}  axb3 {[%clk 0:02:28]} 20. Nxb3 {[%clk 0:02:23]}  e4 {[%clk 0:02:20]} 21. dxe4 {[%clk 0:02:20]}  Nxe4 {[%clk 0:02:21]} 22. a4 {[%clk 0:02:18]}  Qg5 {[%clk 0:02:12]} 23. a5 {[%clk 0:02:15]}  Nxf2 {[%clk 0:01:49]} 24. Kxf2 {[%clk 0:02:13]}  Qxg3+ {[%clk 0:01:45]} 25. Kf1 {[%clk 0:02:08]}  Be4 {[%clk 0:01:45]} 26. Bxe4 {[%clk 0:02:05]}  Rxe4 {[%clk 0:01:46]} 27. Nd4 {[%clk 0:02:00]}  Rf4+ {[%clk 0:01:25]} 28. Nf3 {[%clk 0:01:58]}  Rxf3+ {[%clk 0:01:25]} 29. exf3 {[%clk 0:01:58]}  Qxf3+ {[%clk 0:01:26]} 30. Ke1 {[%clk 0:01:57]}  Bb4+ {[%clk 0:01:26]} 31. Bc3 {[%clk 0:01:56]}  Bxc3+ {[%clk 0:01:26]} 32. Rxc3 {[%clk 0:01:56]}  Qxc3+ {[%clk 0:01:27]} 0-1


[Site "https://www.chess.com"]

[Event "Titled Tuesday Blitz April 19 Late 2022"]
[White "Araujo Filho, Luiz Antonio Coel"]
[Black "Tsukerman, Julia"]
[WhiteFideId "2130661"]
[BlackFideId "2621649"]
[WhiteElo "2317"]
[BlackElo "2224"]
[Result "0-1"]
[Round "09"]
[TimeControl "180+1"]
[Date "2022.04.19"]
[WhiteClock "0:01:51"]
[BlackClock "0:01:23"]

1. d4 {[%clk 0:03:00]}  d5 {[%clk 0:02:26]} 2. Nf3 {[%clk 0:02:59]}  e6 {[%clk 0:02:26]} 3. e3 {[%clk 0:02:56]}  Nf6 {[%clk 0:02:26]} 4. Bd3 {[%clk 0:02:56]}  c5 {[%clk 0:02:26]} 5. c3 {[%clk 0:02:56]}  Nc6 {[%clk 0:02:24]} 6. Nbd2 {[%clk 0:02:57]}  Be7 {[%clk 0:02:24]} 7. Qe2 {[%clk 0:02:57]}  O-O {[%clk 0:02:24]} 8. O-O {[%clk 0:02:56]}  a6 {[%clk 0:02:24]} 9. dxc5 {[%clk 0:02:56]}  Bxc5 {[%clk 0:02:24]} 10. e4 {[%clk 0:02:57]}  b5 {[%clk 0:02:23]} 11. e5 {[%clk 0:02:54]}  Nd7 {[%clk 0:02:23]} 12. Re1 {[%clk 0:02:54]}  Qc7 {[%clk 0:02:23]} 13. Nf1 {[%clk 0:02:53]}  Bb7 {[%clk 0:02:17]} 14. Ng3 {[%clk 0:02:52]}  d4 {[%clk 0:02:16]} 15. Nh5 {[%clk 0:02:41]}  dxc3 {[%clk 0:01:59]} 16. bxc3 {[%clk 0:02:39]}  Ne7 {[%clk 0:01:58]} 17. Qd2 {[%clk 0:02:31]}  Ng6 {[%clk 0:01:53]} 18. Nxg7 {[%clk 0:02:30]}  Bxf3 {[%clk 0:01:33]} 19. gxf3 {[%clk 0:02:11]}  Ndxe5 {[%clk 0:01:27]} 20. Nh5 {[%clk 0:01:51]}  Nxf3+ {[%clk 0:01:23]} 0-1


[Site "https://www.chess.com"]

[Event "Titled Tuesday Blitz April 19 Late 2022"]
[White "Baker, Chris W"]
[Black "Bachmann, Axel"]
[WhiteFideId "401676"]
[BlackFideId "3700488"]
[WhiteElo "2238"]
[BlackElo "2587"]
[Result "1/2-1/2"]
[Round "09"]
[TimeControl "180+1"]
[Date "2022.04.19"]
[WhiteClock "0:01:06"]
[BlackClock "0:00:11"]

1. c4 {[%clk 0:03:00]}  Nf6 {[%clk 0:02:56]} 2. Nf3 {[%clk 0:03:00]}  g6 {[%clk 0:02:56]} 3. g3 {[%clk 0:03:00]}  c5 {[%clk 0:02:56]} 4. Bg2 {[%clk 0:03:00]}  Bg7 {[%clk 0:02:56]} 5. O-O {[%clk 0:03:00]}  O-O {[%clk 0:02:57]} 6. Nc3 {[%clk 0:03:00]}  Nc6 {[%clk 0:02:57]} 7. d4 {[%clk 0:03:00]}  cxd4 {[%clk 0:02:57]} 8. Nxd4 {[%clk 0:03:00]}  Qa5 {[%clk 0:02:58]} 9. h3 {[%clk 0:02:40]}  d6 {[%clk 0:02:54]} 10. Nxc6 {[%clk 0:02:34]}  bxc6 {[%clk 0:02:52]} 11. Bd2 {[%clk 0:02:30]}  Qh5 {[%clk 0:02:36]} 12. e4 {[%clk 0:02:29]}  Qxd1 {[%clk 0:02:12]} 13. Rfxd1 {[%clk 0:02:26]}  Nd7 {[%clk 0:02:13]} 14. Rac1 {[%clk 0:02:22]}  Ne5 {[%clk 0:02:00]} 15. b3 {[%clk 0:02:21]}  a5 {[%clk 0:01:52]} 16. Be3 {[%clk 0:02:17]}  h5 {[%clk 0:01:30]} 17. Na4 {[%clk 0:02:16]}  Nd7 {[%clk 0:01:29]} 18. Bd4 {[%clk 0:02:03]}  Rb8 {[%clk 0:01:22]} 19. Bxg7 {[%clk 0:02:01]}  Kxg7 {[%clk 0:01:23]} 20. c5 {[%clk 0:01:58]}  dxc5 {[%clk 0:01:08]} 21. Nxc5 {[%clk 0:01:58]}  Nxc5 {[%clk 0:00:58]} 22. Rxc5 {[%clk 0:01:57]}  a4 {[%clk 0:00:52]} 23. bxa4 {[%clk 0:01:54]}  Rb4 {[%clk 0:00:46]} 24. Rxc6 {[%clk 0:01:53]}  Rxa4 {[%clk 0:00:46]} 25. Rc7 {[%clk 0:01:49]}  Re8 {[%clk 0:00:37]} 26. Rd2 {[%clk 0:01:47]}  Be6 {[%clk 0:00:37]} 27. Kh2 {[%clk 0:01:35]}  Bxa2 {[%clk 0:00:36]} 28. e5 {[%clk 0:01:28]}  Ra5 {[%clk 0:00:28]} 29. f4 {[%clk 0:01:26]}  Kf8 {[%clk 0:00:22]} 30. h4 {[%clk 0:01:25]}  Be6 {[%clk 0:00:22]} 31. Bc6 {[%clk 0:01:23]}  Rb8 {[%clk 0:00:20]} 32. Rb7 {[%clk 0:01:18]}  Rxb7 {[%clk 0:00:19]} 33. Bxb7 {[%clk 0:01:18]}  Ra2 {[%clk 0:00:19]} 34. Rxa2 {[%clk 0:01:17]}  Bxa2 {[%clk 0:00:20]} 35. Be4 {[%clk 0:01:16]}  Be6 {[%clk 0:00:20]} 36. Kg2 {[%clk 0:01:17]}  Kg7 {[%clk 0:00:21]} 37. Kf3 {[%clk 0:01:17]}  f6 {[%clk 0:00:21]} 38. exf6+ {[%clk 0:01:16]}  exf6 {[%clk 0:00:22]} 39. Ke3 {[%clk 0:01:15]}  Bf7 {[%clk 0:00:22]} 40. Kd4 {[%clk 0:01:15]}  Kf8 {[%clk 0:00:22]} 41. Kc5 {[%clk 0:01:15]}  Ke7 {[%clk 0:00:22]} 42. Bd5 {[%clk 0:01:15]}  Be8 {[%clk 0:00:22]} 43. Be4 {[%clk 0:01:11]}  Bf7 {[%clk 0:00:22]} 44. Bd5 {[%clk 0:01:11]}  Be8 {[%clk 0:00:21]} 45. Be4 {[%clk 0:01:11]}  Ke6 {[%clk 0:00:19]} 46. Kd4 {[%clk 0:01:09]}  Kd6 {[%clk 0:00:17]} 47. Bd5 {[%clk 0:01:08]}  Ke7 {[%clk 0:00:16]} 48. Be4 {[%clk 0:01:07]}  Bf7 {[%clk 0:00:15]} 49. Bd5 {[%clk 0:01:06]}  Be8 {[%clk 0:00:13]} 50. Be4 {[%clk 0:01:06]}  Kd6 {[%clk 0:00:13]} 51. Bd5 {[%clk 0:01:06]}  Ke7 {[%clk 0:00:11]} 1/2-1/2


[Site "https://www.chess.com"]

[Event "Titled Tuesday Blitz April 19 Late 2022"]
[White "Balint, Vilmos"]
[Black "Bibasa, Bob"]
[WhiteFideId "718050"]
[BlackFideId "10000240"]
[WhiteElo "2059"]
[BlackElo "2056"]
[Result "1/2-1/2"]
[Round "09"]
[TimeControl "180+1"]
[Date "2022.04.19"]
[WhiteClock "0:01:37"]
[BlackClock "0:00:18"]

1. d4 {[%clk 0:03:00]}  Nf6 {[%clk 0:03:00]} 2. c4 {[%clk 0:03:00]}  e6 {[%clk 0:03:00]} 3. Nf3 {[%clk 0:03:00]}  b6 {[%clk 0:03:00]} 4. g3 {[%clk 0:03:01]}  Bb7 {[%clk 0:03:00]} 5. Bg2 {[%clk 0:03:01]}  Bb4+ {[%clk 0:03:00]} 6. Bd2 {[%clk 0:03:01]}  Bxd2+ {[%clk 0:03:00]} 7. Qxd2 {[%clk 0:03:01]}  O-O {[%clk 0:03:01]} 8. O-O {[%clk 0:03:01]}  d6 {[%clk 0:02:55]} 9. Nc3 {[%clk 0:03:01]}  c5 {[%clk 0:02:55]} 10. e3 {[%clk 0:03:00]}  Nc6 {[%clk 0:02:51]} 11. a3 {[%clk 0:03:00]}  e5 {[%clk 0:02:51]} 12. dxe5 {[%clk 0:02:55]}  Nxe5 {[%clk 0:02:49]} 13. Nxe5 {[%clk 0:02:52]}  Bxg2 {[%clk 0:02:50]} 14. Nxf7 {[%clk 0:02:50]}  Rxf7 {[%clk 0:02:30]} 15. Kxg2 {[%clk 0:02:50]}  Qe7 {[%clk 0:02:27]} 16. Rad1 {[%clk 0:02:48]}  Rd8 {[%clk 0:02:27]} 17. Nd5 {[%clk 0:02:48]}  Qe4+ {[%clk 0:02:27]} 18. Kg1 {[%clk 0:02:47]}  Qxc4 {[%clk 0:02:26]} 19. Nxf6+ {[%clk 0:02:42]}  Rxf6 {[%clk 0:02:26]} 20. Qd5+ {[%clk 0:02:42]}  Qxd5 {[%clk 0:02:26]} 21. Rxd5 {[%clk 0:02:43]}  Kf7 {[%clk 0:02:27]} 22. Rfd1 {[%clk 0:02:42]}  Ke6 {[%clk 0:02:26]} 23. f4 {[%clk 0:02:41]}  Rf5 {[%clk 0:02:26]} 24. e4 {[%clk 0:02:39]}  Rxd5 {[%clk 0:02:26]} 25. Rxd5 {[%clk 0:02:40]}  Rc8 {[%clk 0:02:20]} 26. Kf2 {[%clk 0:02:40]}  c4 {[%clk 0:02:20]} 27. Ke3 {[%clk 0:02:39]}  c3 {[%clk 0:02:21]} 28. bxc3 {[%clk 0:02:39]}  Rxc3+ {[%clk 0:02:21]} 29. Rd3 {[%clk 0:02:39]}  Rc2 {[%clk 0:02:11]} 30. h4 {[%clk 0:02:38]}  h5 {[%clk 0:02:11]} 31. Rb3 {[%clk 0:02:27]}  g6 {[%clk 0:02:05]} 32. Kf3 {[%clk 0:02:26]}  d5 {[%clk 0:02:03]} 33. e5 {[%clk 0:02:25]}  d4 {[%clk 0:02:03]} 34. Ke4 {[%clk 0:02:25]}  Rc4 {[%clk 0:01:59]} 35. Kd3 {[%clk 0:02:24]}  Kd5 {[%clk 0:01:58]} 36. Rb5+ {[%clk 0:02:23]}  Rc5 {[%clk 0:01:58]} 37. a4 {[%clk 0:02:20]}  a6 {[%clk 0:01:39]} 38. Rxb6 {[%clk 0:02:20]}  Rc3+ {[%clk 0:01:39]} 39. Kd2 {[%clk 0:02:20]}  Rxg3 {[%clk 0:01:39]} 40. Rd6+ {[%clk 0:02:19]}  Ke4 {[%clk 0:01:36]} 41. e6 {[%clk 0:02:19]}  Rg2+ {[%clk 0:01:37]} 42. Kd1 {[%clk 0:02:19]}  Kd3 {[%clk 0:01:32]} 43. Ke1 {[%clk 0:02:19]}  Re2+ {[%clk 0:01:31]} 44. Kf1 {[%clk 0:02:20]}  Re4 {[%clk 0:01:29]} 45. Kg2 {[%clk 0:02:19]}  Ke2 {[%clk 0:01:28]} 46. Rd5 {[%clk 0:01:54]}  d3 {[%clk 0:01:07]} 47. Re5 {[%clk 0:01:54]}  Rxe5 {[%clk 0:01:08]} 48. fxe5 {[%clk 0:01:54]}  d2 {[%clk 0:01:08]} 49. e7 {[%clk 0:01:55]}  d1=Q {[%clk 0:01:08]} 50. e8=Q {[%clk 0:01:56]}  Qf1+ {[%clk 0:01:09]} 51. Kh2 {[%clk 0:01:56]}  Qf2+ {[%clk 0:01:08]} 52. Kh3 {[%clk 0:01:56]}  Qf3+ {[%clk 0:01:09]} 53. Kh2 {[%clk 0:01:55]}  Kf2 {[%clk 0:01:06]} 54. Qxg6 {[%clk 0:01:51]}  Qf4+ {[%clk 0:00:57]} 55. Kh3 {[%clk 0:01:49]}  Qe3+ {[%clk 0:00:56]} 56. Kh2 {[%clk 0:01:46]}  Qxe5+ {[%clk 0:00:57]} 57. Kh3 {[%clk 0:01:46]}  Qe3+ {[%clk 0:00:57]} 58. Kh2 {[%clk 0:01:47]}  Qf4+ {[%clk 0:00:57]} 59. Kh3 {[%clk 0:01:47]}  Qf3+ {[%clk 0:00:55]} 60. Kh2 {[%clk 0:01:48]}  Qf4+ {[%clk 0:00:44]} 61. Kh3 {[%clk 0:01:48]}  Qxa4 {[%clk 0:00:40]} 62. Qxh5 {[%clk 0:01:39]}  Qd7+ {[%clk 0:00:38]} 63. Qg4 {[%clk 0:01:36]}  Qd3+ {[%clk 0:00:34]} 64. Kh2 {[%clk 0:01:36]}  Qd6+ {[%clk 0:00:18]} 65. Kh1 {[%clk 0:01:37]}  Qc6+ {[%clk 0:00:17]} 66. Kh2 {[%clk 0:01:36]}  Qd6+ {[%clk 0:00:17]} 67. Kh3 {[%clk 0:01:37]}  Qd3+ {[%clk 0:00:17]} 68. Kh2 {[%clk 0:01:37]}  Qd6+ {[%clk 0:00:18]} 1/2-1/2


[Site "https://www.chess.com"]

[Event "Titled Tuesday Blitz April 19 Late 2022"]
[White "Bilych, Olexiy"]
[Black "Schekachikhin, Maksim"]
[WhiteFideId "14156504"]
[BlackFideId "24177830"]
[WhiteElo "2176"]
[BlackElo "2230"]
[Result "1-0"]
[Round "09"]
[TimeControl "180+1"]
[Date "2022.04.19"]
[WhiteClock "0:00:55"]
[BlackClock "0:00:16"]

1. e4 {[%clk 0:03:00]}  c5 {[%clk 0:02:59]} 2. Nf3 {[%clk 0:02:59]}  e6 {[%clk 0:02:59]} 3. d4 {[%clk 0:02:59]}  cxd4 {[%clk 0:03:00]} 4. Nxd4 {[%clk 0:03:00]}  Nc6 {[%clk 0:03:00]} 5. Nc3 {[%clk 0:03:01]}  Qc7 {[%clk 0:03:00]} 6. Be3 {[%clk 0:03:02]}  a6 {[%clk 0:03:00]} 7. Qf3 {[%clk 0:03:02]}  d6 {[%clk 0:02:58]} 8. O-O-O {[%clk 0:03:02]}  Bd7 {[%clk 0:02:58]} 9. Qg3 {[%clk 0:02:58]}  Nf6 {[%clk 0:02:56]} 10. f4 {[%clk 0:02:51]}  g6 {[%clk 0:02:56]} 11. Nxc6 {[%clk 0:02:47]}  Bxc6 {[%clk 0:02:55]} 12. Bd4 {[%clk 0:02:47]}  Be7 {[%clk 0:02:39]} 13. Bd3 {[%clk 0:02:06]}  b5 {[%clk 0:02:22]} 14. Rhe1 {[%clk 0:01:55]}  b4 {[%clk 0:02:21]} 15. Nd5 {[%clk 0:01:54]}  exd5 {[%clk 0:01:52]} 16. exd5 {[%clk 0:01:54]}  O-O {[%clk 0:01:51]} 17. dxc6 {[%clk 0:01:53]}  Nh5 {[%clk 0:01:50]} 18. Qf3 {[%clk 0:01:48]}  Bf6 {[%clk 0:01:49]} 19. Bxf6 {[%clk 0:01:45]}  Nxf6 {[%clk 0:01:50]} 20. g4 {[%clk 0:01:43]}  Rac8 {[%clk 0:01:44]} 21. g5 {[%clk 0:01:42]}  Nh5 {[%clk 0:01:44]} 22. Be4 {[%clk 0:01:32]}  d5 {[%clk 0:01:32]} 23. Bxd5 {[%clk 0:01:31]}  Nxf4 {[%clk 0:01:31]} 24. Bb3 {[%clk 0:01:30]}  a5 {[%clk 0:01:23]} 25. Rd7 {[%clk 0:01:29]}  Qb8 {[%clk 0:01:07]} 26. Ree7 {[%clk 0:01:28]}  a4 {[%clk 0:00:56]} 27. Bxf7+ {[%clk 0:01:24]}  Kh8 {[%clk 0:00:55]} 28. Bxg6 {[%clk 0:01:14]}  Nd3+ {[%clk 0:00:44]} 29. Qxd3 {[%clk 0:01:11]}  Qf4+ {[%clk 0:00:44]} 30. Qe3 {[%clk 0:00:55]}  Qf1+ {[%clk 0:00:29]} 31. Qe1 {[%clk 0:00:54]}  Qxe1+ {[%clk 0:00:23]} 32. Rxe1 {[%clk 0:00:55]}  hxg6 {[%clk 0:00:23]} 33. c7 {[%clk 0:00:56]}  b3 {[%clk 0:00:15]} 34. axb3 {[%clk 0:00:54]}  axb3 {[%clk 0:00:16]} 35. cxb3 {[%clk 0:00:55]} 1-0


[Site "https://www.chess.com"]